[Event "Przeworsk GM norm 2022"]
[Site "Przeworsk"]
[Date "2022.06.02"]
[Round "6.5"]
[White "Licznerski, Lukasz"]
[Black "Baum, Jonasz"]
[Result "0-1"]
[ECO "A40"]
[WhiteElo "2439"]
[BlackElo "2409"]
[Annotator "TA"]
[PlyCount "94"]
[EventDate "2022.05.30"]
[EventType "tourn"]
[EventCountry "POL"]
[SourceTitle "playchess.com"]
[Source "ChessBase"]
[SourceQuality "1"]
[TimeControl "40/5400+30:1800+30"]

{[%evp 28,94,16,0,-9,-160,-161,-139,-143,-166,-168,-160,-151,-162,-145,-150,-144,-141,-145,-138,-122,-103,-50,-121,-121,-129,-112,-122,-125,-128,-126,-118,-21,-102,-102,-103,0,-112,0,-98,-38,-108,-111,-112,-112,-119,-119,-123,-130,-134,0,-131,0,-328,-366,-400,-383,-571,-566,-558,-543,-712,-681,-1066,-878,-1062,-1047,-1045,-996]} 1. d4 {[%emt 0:02:34]} e6 {[%emt 0:01:26]} 2. Nf3 {[%emt 0:01:21]} Nf6 {[%emt 0:00:50]} 3. g3 {[%emt 0:00:23]} d5 4. Bg2 {[%emt 0:01:10]} Be7 {[%emt 0:01:59]} 5. c4 {[%emt 0:00:25]} O-O {[%emt 0:00:38]} 6. O-O {[%emt 0:00:06]} dxc4 {[%emt 0:01:31]} 7. Qa4 {[%emt 0:02:03]} a6 {[%emt 0:03:24]} 8. Qxc4 {[%emt 0:00:44]} b5 {[%emt 0:00:12]} 9. Qc2 {[%emt 0:02:47]} Bb7 {[%emt 0:00:15]} 10. Bg5 {[%emt 0:13:12]} Nbd7 {[%emt 0:00:45][%cal Bb8d7,Bd7f6,Bf6d5,Bd5b4,Bb4c2][%mdl 32]} 11. Nbd2 {[%emt 0:01:01]} Rc8 {[%emt 0:03:58]} 12. Bxf6 {[%emt 0:02:33]} Nxf6 {[%emt 0:00:24]} 13. Nb3 {[%emt 0:00:49]} Be4 {[%emt 0:02:07]} 14. Qc3 {[%emt 0:05:35]} Nd5 {[%emt 0:11:26] [#]} 15. Qc1 $146 {[%emt 0:08:12]} ({Predecessor:} 15. Qd2 Bb4 16. Qd1 c5 17. a3 c4 18. axb4 cxb3 19. Qxb3 Qd6 20. Ne5 Bxg2 21. Kxg2 Nxb4 22. e3 f6 23. Nd3 Nxd3 24. Qxd3 {½-½ (58) Navara,D (2602)-Aronian,L (2645) Antalya 2004}) 15... Nb4 {[%emt 0:11:12] E05: Open Catalan: 5 Nf3 Be7.} 16. Qc3 $2 {[%emt 0:08:31]} (16. Nfd2 $11 Bxg2 17. Kxg2) 16... Nc2 $1 $17 {[%emt 0:06:32] Threatens to win with ...Bb4.} 17. Rac1 {[%emt 0:09:55]} Bb4 {[%emt 0:00:15] Black is more active. This bishop pair is nice. Black is clearly better.} 18. Qxc2 {[%emt 0:00:02]} Bxc2 {[%emt 0:00:04]} 19. Rxc2 Bd6 {[%emt 0:14:34]} 20. Rfc1 {[%emt 0:00:57]} c6 {[%emt 0:01:13]} 21. Nc5 {[%emt 0:02:34]} Bxc5 {[%emt 0:01:30]} 22. Rxc5 {[%emt 0:00:08]} f6 {[%emt 0:02:48]} 23. e3 {[%emt 0:01:12]} Qa5 {[%emt 0:03:31]} 24. a3 {[%emt 0:00:19]} Rfd8 {[%emt 0:03:29]} (24... Rc7 $17 25. d5 e5) 25. Ne1 {[%emt 0:02:40]} (25. Bh3 $1 $15 Kf7 26. d5 exd5 27. Bxc8 Rxc8 28. Nd4) 25... Rd6 {[%emt 0:02:25][%cal Oe6e5]} 26. Be4 {[%emt 0:03:20]} Qb6 {[%emt 0:09:29]} 27. Nd3 {[%emt 0:00:28]} a5 $1 {[%emt 0:00:01]} 28. h4 {[%emt 0:00:02]} Rc7 {[%emt 0:04:07]} 29. b4 {[%emt 0:02:49]} a4 {[%emt 0:05:01]} (29... h6 $17 30. bxa5 Qxa5) 30. h5 {[%emt 0:00:02]} (30. Nf4 $11 {keeps the balance.}) 30... Rc8 {[%emt 0:00:57]} 31. Kf1 {[%emt 0:00:27]} Rc7 {[%emt 0:00:27]} (31... Qd8 $17 {[%cal Oe6e5] White must now prevent ...e5!} 32. Bxc6 Rdxc6 $1 33. Rxc6 Rxc6 34. Rxc6 e5) 32. Ke2 {[%emt 0:00:15]} (32. Kg1 $1 $11) 32... Rc8 {[%emt 0:00:04]} (32... Qa6 $17 33. g4 h6) 33. g4 {[%emt 0:00:51]} (33. Kf1 $11) 33... Qb7 {[%emt 0:00:54]} (33... h6 $1 $17 34. f3 Qb7) 34. f4 {[%emt 0:07:34]} (34. g5 $1 $15) 34... Qd7 {[%emt 0:00:21]} 35. Bf3 {[%emt 0:02:35]} Kh8 {[%emt 0:02:52]} 36. R5c3 {[%emt 0:01:10]} Qe8 {[%emt 0:02:23]} 37. R3c2 {[%emt 0:00:56]} Kg8 {[%emt 0:00:11]} 38. Rc5 {[%emt 0:05:34]} Kh8 {[%emt 0:00:25]} (38... Kf8 $17 39. g5 Rd5 $1 {[%mdl 512]} 40. gxf6 gxf6 $1) 39. Nf2 {[%emt 0:02:41]} (39. R5c2 $1 $11) 39... Kg8 {[%emt 0:00:47]} ({Black should play} 39... e5 $17 40. fxe5 fxe5 41. dxe5 Rdd8) 40. h6 $2 {[%emt 0:00:00][%mdl 8192] [#]} (40. Nd3 $1 $11 {and White is okay.}) 40... e5 $1 $19 {[%emt 0:00:00]} ({Not} 40... gxh6 41. Ne4 Qf8 42. Nxd6 Qxd6 43. Bxc6 $16) 41. fxe5 {[%emt 0:22:17]} fxe5 {[%emt 0:03:09]} 42. d5 {[%emt 0:00:01]} (42. dxe5 $142 Rxh6 43. R1c2) 42... Qf7 {[%emt 0:09:02] ...Rf8 is the strong threat. Black is clearly winning.} 43. Nd3 {[%emt 0:04:15]} Re8 {[%emt 0:06:12] Hoping for ...e4.} ({Wrong is} 43... Rxh6 $2 44. Nxe5 Qc7 45. Rxc6 Rxc6 46. Rxc6 $19) 44. dxc6 {[%emt 0:04:46] [#] aiming for c7.} Rxd3 $1 {[%emt 0:05:12][%mdl 512]} 45. c7 {[%emt 0:00:13]} (45. Kxd3 Qxf3) 45... Qb3 {[%emt 0:03:24]} ({Weaker is} 45... e4 46. Bxe4 Rd4 47. Bf5 $11) 46. Bd5+ {[%emt 0:00:33]} Rxd5 {[%emt 0:00:13]} 47. c8=Q {[%emt 0:00:03]} Qd3+ {[%emt 0:00:39] Weighted Error Value: White=0.79/Black=0.19 (very precise)} 0-1

[Event "Przeworsk GM norm 2022"]
[Site "Przeworsk"]
[Date "2022.06.03"]
[Round "7.1"]
[White "Baum, Jonasz"]
[Black "Stefansson, Hannes"]
[Result "1-0"]
[ECO "E15"]
[WhiteElo "2409"]
[BlackElo "2534"]
[Annotator "TA"]
[PlyCount "58"]
[EventDate "2022.05.30"]
[EventType "tourn"]
[EventCountry "POL"]
[SourceTitle "playchess.com"]
[Source "ChessBase"]
[SourceQuality "1"]
[TimeControl "40/5400+30:1800+30"]

{[%evp 11,58,20,27,8,0,-18,34,29,57,58,108,62,51,6,14,20,3,0,0,3,33,44,43,0,0,0,21,0,0,0,21,6,233,227,308,297,671,646,618,593,822,787,786,565,852,490,1530,1468,29988]} 1. d4 {[%emt 0:00:02]} Nf6 {[%emt 0:00:16]} 2. c4 {[%emt 0:00:07]} e6 {[%emt 0:00:11]} 3. Nf3 {[%emt 0:00:05]} b6 {[%emt 0:00:40]} 4. g3 {[%emt 0:02:14]} Ba6 {[%emt 0:00:33]} 5. Qc2 {[%emt 0:01:19]} Bb7 {[%emt 0:02:12]} 6. Bg2 {[%emt 0:00:35]} c5 {[%emt 0:00:49]} 7. d5 {[%emt 0:00:22] E15: Queen's Indian: 4 g3 sidelines, 4 g3 Ba6 and 4 g3 Bb7 early deviations.} exd5 {[%emt 0:00:15]} 8. O-O {[%emt 0:00:22]} Be7 {[%emt 0:10:11]} (8... Nc6 $11) 9. Nh4 {[%emt 0:01:11] White is slightly better.} O-O {[%emt 0:04:53]} 10. Nc3 {[%emt 0:11:10] [#]} b5 $146 {[%emt 0:08:31]} (10... g6 $14) ({Predecessor:} 10... Re8 11. cxd5 d6 12. Nf5 Bf8 13. Bg5 h6 14. Bf4 a6 15. a4 Nh5 16. Kh1 Nxf4 17. gxf4 {½-½ (42) Holt,C (2584)-Ju,W (2568) Chess.com INT 2018}) 11. cxd5 {[%emt 0:22:29] White is more active.} ({Don't take} 11. Nxd5 Nxd5 12. cxd5 Bxh4 $14) (11. Nxb5 $16 {Nf5 is the strong threat.} Nc6 12. Nf5 (12. cxd5 Nb4 $14)) 11... b4 $1 $14 {[%emt 0:02:18]} 12. d6 {[%emt 0:09:21]} Bxg2 {[%emt 0:00:18]} 13. dxe7 {[%emt 0:00:19]} Qxe7 {[%emt 0:00:07]} 14. Nxg2 {[%emt 0:02:17]} (14. Kxg2 {with more complications.} bxc3 15. Qxc3 d5 16. Qe3) 14... bxc3 {[%emt 0:00:07]} 15. Qxc3 {[%emt 0:00:44]} Qxe2 {[%emt 0:01:46]} 16. Qxc5 {[%emt 0:01:12]} Nc6 {[%emt 0:02:00]} 17. Re1 {[%emt 0:02:29]} (17. Nf4 $5 {[%cal Rf4e2]} Qe5 18. Qxe5 Nxe5 19. b3 $14) 17... Qg4 {[%emt 0:02:17] [#] aiming for ...Nd4.} 18. Bf4 {[%emt 0:11:27]} h6 {[%emt 0:10:28]} 19. b4 $36 {[%emt 0:08:55][%mdl 2048] White has some pressure.} Rfc8 {[%emt 0:03:40]} 20. Qd6 {[%emt 0:03:23]} Rab8 {[%emt 0:04:26]} 21. Rac1 {[%emt 0:05:31]} Rb5 $2 {[%emt 0:06:14] [#] Loses the game.} (21... a5 $11) 22. a4 $1 $18 {[%emt 0:01:48]} Rd5 {[%emt 0:22:41]} 23. Ne3 $1 {[%emt 0:00:13][%csl LRd5,LRg4]} Qh3 $2 {[%emt 0:00:49]} (23... Rxd6 24. Nxg4 Re6) 24. Nxd5 {[%emt 0:03:55] White is clearly winning.} Ng4 {[%emt 0:00:05]} 25. Qc5 {[%emt 0:01:36]} d6 {[%emt 0:01:55]} 26. Bxd6 {[%emt 0:00:40]} Rd8 {[%emt 0:03:11]} 27. Rc4 {[%emt 0:02:15]} Qxh2+ {[%emt 0:07:03]} 28. Kf1 {[%emt 0:00:01]} Nxf2 {[%emt 0:01:17]} (28... Rxd6 $142 29. Re8+ Kh7 30. Rxg4 Qh1+ 31. Ke2 Qxd5 32. Qxd5 Rxd5) 29. Qxc6 {[%emt 0:02:50]} ({Stronger than} 29. Qxf2 Qh1+ 30. Qg1 Qf3+ 31. Qf2 Qh1+ 32. Qg1 Qf3+ 33. Qf2 Qh1+ $11) 29... Rxd6 {[%emt 0:03:06] Weighted Error Value: White=0.22 (precise) /Black=0.66} 1-0

[Event "Przeworsk GM norm 2022"]
[Site "Przeworsk"]
[Date "2022.06.03"]
[Round "7.2"]
[White "Mikrut, Dariusz"]
[Black "Licznerski, Lukasz"]
[Result "0-1"]
[ECO "D97"]
[WhiteElo "2361"]
[BlackElo "2439"]
[Annotator "TA"]
[PlyCount "58"]
[EventDate "2022.05.30"]
[EventType "tourn"]
[EventCountry "POL"]
[SourceTitle "playchess.com"]
[Source "ChessBase"]
[SourceQuality "1"]
[TimeControl "40/5400+30:1800+30"]

{[%evp 14,58,36,27,18,27,37,23,37,31,38,41,53,39,37,37,57,32,48,-4,0,0,14,-8,-21,-162,-181,-172,-181,-161,0,-17,-19,-21,-16,-23,25,-344,-339,-337,-329,-320,-307,-318,-287,-359,-327]} 1. d4 Nf6 {[%emt 0:05:12]} 2. c4 {[%emt 0:00:19]} g6 {[%emt 0:00:02]} 3. Nc3 {[%emt 0:00:05]} d5 {[%emt 0:00:07]} 4. Nf3 {[%emt 0:00:24]} Bg7 {[%emt 0:00:11]} 5. Qb3 {[%emt 0:00:40]} dxc4 {[%emt 0:01:05]} 6. Qxc4 {[%emt 0:00:27]} O-O {[%emt 0:02:53]} 7. e4 {[%emt 0:00:14]} Nfd7 {[%emt 0:00:13]} 8. Be3 {[%emt 0:01:37]} Nb6 {[%emt 0:02:46] D97: Grünfeld: Russian System: 7 e4, replies other than 7...Bg4.} 9. Qb3 {[%emt 0:00:39]} Nc6 {[%emt 0:06:24][%cal Rc6d4]} 10. O-O-O {[%emt 0:15:24]} a5 {[%emt 0:08:38] White has an edge.} 11. d5 {[%emt 0:11:53]} a4 $1 {[%emt 0:00:27]} 12. Qa3 {[%emt 0:00:11] [#]} Ne5 $146 {[%emt 0:03:14]} ({Predecessor:} 12... Na5 13. Bc5 Re8 14. Kb1 Bd7 15. Nd4 Nbc4 16. Qb4 Nd6 17. f3 b6 18. Bxd6 exd6 19. Nxa4 Nc4 20. Nc3 Ne3 21. Re1 Nxd5 22. Nxd5 Ra4 23. Qb3 Rxd4 24. Rd1 Ba4 {0-1 (23) Friedrich,W (2249)-Albrecht,J (2143) Germany 2016}) 13. Nxe5 {[%emt 0:07:22]} Bxe5 {[%emt 0:00:05]} 14. Nb5 {[%emt 0:10:50]} Bd7 {[%emt 0:03:14]} 15. f4 {[%emt 0:00:27]} Bg7 {[%emt 0:03:03]} 16. Qc5 {[%emt 0:11:36]} (16. Be2 $14) 16... Bg4 {[%emt 0:29:44] aiming for ...a3.} 17. Rd2 {[%emt 0:01:16]} a3 $1 {[%emt 0:03:56]} 18. b3 {[%emt 0:07:24]} Nd7 {[%emt 0:00:47]} 19. Qc4 {[%emt 0:03:32] [#]} (19. Qc2 $1 $11 {and White is okay.} c6 20. dxc6 bxc6 21. Nc3) 19... c6 $1 $36 {[%emt 0:02:34][%mdl 2048] Black is on the roll.} 20. dxc6 {[%emt 0:02:05]} bxc6 {[%emt 0:00:04]} 21. Nd4 {[%emt 0:04:20] [#]} Rc8 {[%emt 0:00:26]} (21... e5 $1 $19 {[%cal Re5d4]} 22. fxe5 (22. Nxc6 Qh4 $17) 22... Nxe5) 22. h3 {[%emt 0:09:25]} c5 $1 {[%emt 0:00:05]} 23. Nc6 {[%emt 0:00:20]} Rxc6 {[%emt 0:00:38]} 24. hxg4 {[%emt 0:00:04]} Qc7 {[%emt 0:01:44]} (24... Qa5 {was preferrable.} 25. e5 Nb6) 25. Qc2 $2 {[%emt 0:01:43][%mdl 8192]} (25. e5 $11) 25... Bd4 {[%emt 0:01:46]} 26. Rh3 {[%emt 0:02:40]} Bxe3 {[%emt 0:00:44]} 27. Rxe3 {[%emt 0:00:04]} Qxf4 {[%emt 0:00:07]} 28. Rf3 {[%emt 0:00:04]} Qg5 {[%emt 0:00:46]} 29. Bb5 {[%emt 0:00:41]} Rd6 {[%emt 0:00:28] Weighted Error Value: White=0.46/Black=0.15 (very precise)} 0-1

[Event "Przeworsk GM norm 2022"]
[Site "Przeworsk"]
[Date "2022.06.03"]
[Round "7.3"]
[White "Teclaf, Pawel"]
[Black "Golubka, Petro"]
[Result "1/2-1/2"]
[ECO "B34"]
[WhiteElo "2537"]
[BlackElo "2380"]
[Annotator "TA"]
[PlyCount "64"]
[EventDate "2022.05.30"]
[EventType "tourn"]
[EventCountry "POL"]
[SourceTitle "playchess.com"]
[Source "ChessBase"]
[SourceQuality "1"]
[TimeControl "40/5400+30:1800+30"]

{[%evp 18,64,58,44,52,47,58,66,63,42,41,0,0,0,0,0,0,0,0,0,0,0,0,0,0,0,0,0,0,0,0,0,0,0,0,0,0,0,0,0,0,1,19,13,31,27,40,8,35]} 1. e4 {[%emt 0:00:02]} c5 {[%emt 0:00:01]} 2. Nf3 {[%emt 0:00:05]} Nc6 {[%emt 0:00:02]} 3. d4 {[%emt 0:00:46]} cxd4 {[%emt 0:00:04]} 4. Nxd4 {[%emt 0:00:03]} Nf6 {[%emt 0:00:14]} 5. Nc3 {[%emt 0:00:05]} e5 {[%emt 0:00:02]} 6. Ndb5 {[%emt 0:00:12]} h6 {[%emt 0:00:07]} 7. Nd6+ {[%emt 0:04:13]} Bxd6 {[%emt 0:00:20]} 8. Qxd6 {[%emt 0:00:03]} Qe7 {[%emt 0:00:06]} 9. Qxe7+ {[%emt 0:02:03]} Kxe7 {[%emt 0:04:13]} 10. b3 $1 {[%emt 0:01:54][%mdl 4] outshines the older 10.Be3.} d6 {[%emt 0:00:05] B33: Sicilian: Pelikan and Sveshnikov Variations.} 11. Ba3 {[%emt 0:04:57] Inhibits Nb4.} a6 {[%emt 0:02:18]} 12. O-O-O {[%emt 0:22:36]} (12. Bc4 {seems wilder.} b5 13. Bd5 Bd7 14. O-O-O) 12... Rd8 {[%emt 0:00:06] White is slightly better.} 13. Nd5+ {[%emt 0:11:13]} (13. Bc4 {is interesting.} b5 14. Bd5 Bd7 15. Rhe1) 13... Nxd5 {[%emt 0:03:30] [#]} 14. Rxd5 $146 {[%emt 0:00:03]} ({Predecessor:} 14. exd5 Nb8 15. Re1 f6 16. f4 Nd7 17. Bd3 b5 18. Rhf1 Bb7 19. Be4 a5 20. Rf3 {0-1 (59) Karttunen,M (2485)-Buscar,M (2088) Chess.com INT 2021}) 14... Be6 {[%emt 0:05:21]} 15. Rd2 {[%emt 0:03:36]} b5 {[%emt 0:00:37][%cal Bb7b5,Bb5b4][%mdl 32]} 16. Be2 {[%emt 0:06:00]} b4 {[%emt 0:16:14]} 17. Bb2 {[%emt 0:00:32]} f6 {[%emt 0:00:45]} 18. Kb1 {[%emt 0:02:44]} a5 {[%emt 0:04:46]} 19. Rc1 {[%emt 0:05:00]} d5 {[%emt 0:03:28]} 20. exd5 $1 {[%emt 0:03:26]} Bxd5 {[%emt 0:03:13]} 21. f3 {[%emt 0:00:35]} Be6 {[%emt 0:01:34]} 22. Rcd1 {[%emt 0:01:34]} Bf5 {[%emt 0:04:12]} 23. Rxd8 {[%emt 0:04:43]} Rxd8 {[%emt 0:01:50]} 24. Rxd8 {[%emt 0:00:53]} Kxd8 $11 {[%emt 0:00:07][%mdl 4096] Endgame KBB-KBN} 25. Kc1 {[%emt 0:00:15]} Nd4 {[%emt 0:00:17]} 26. Bd1 {[%emt 0:01:04]} Nb5 {[%emt 0:00:25]} 27. Kd2 {[%emt 0:00:38]} Kc7 {[%emt 0:00:19]} 28. Be2 {[%emt 0:01:33]} Kc6 {[%emt 0:05:49]} 29. Bd3 {[%emt 0:04:37]} Bxd3 {[%emt 0:00:34]} 30. Kxd3 {[%emt 0:00:15]} Nd6 {[%emt 0:09:08]} 31. c3 {[%emt 0:03:55]} h5 {[%emt 0:04:47]} 32. g3 {[%emt 0:05:16]} g6 {[%emt 0:00:35] Weighted Error Value: White=0.04 (flawless) /Black=0.02 (flawless)} 1/2-1/2

[Event "Przeworsk GM norm 2022"]
[Site "Przeworsk"]
[Date "2022.06.03"]
[Round "7.4"]
[White "Fus, Jakub"]
[Black "Neugebauer, Martin"]
[Result "0-1"]
[ECO "E06"]
[WhiteElo "2378"]
[BlackElo "2505"]
[Annotator "TA"]
[PlyCount "120"]
[EventDate "2022.05.30"]
[EventType "tourn"]
[EventCountry "POL"]
[SourceTitle "playchess.com"]
[Source "ChessBase"]
[SourceQuality "1"]
[TimeControl "40/5400+30:1800+30"]

{[%evp 12,120,20,20,35,14,11,7,8,0,2,-22,-22,-25,-12,-19,-16,-15,-15,-27,-35,-38,-25,-23,-23,-16,-16,-53,-30,-54,-54,-54,-54,-54,-54,-59,-60,-55,-32,-39,-45,-77,-71,-80,-78,-77,-31,-32,-31,-31,-31,-32,-32,-44,-34,-23,-6,-6,-6,-6,0,0,0,0,0,0,0,-198,-209,-186,-110,-213,-110,-110,-110,-573,-568,-543,-543,-590,-562,-565,-327,-372,-315,-516,-509,-500,-551,-551,-499,-552,-534,-522,-277,-281,-253,-536,-535,-482,-406,-564,-556,-533,-533,-535,-514,-1510,-1509,-1029,-817]} 1. d4 {[%emt 0:00:05]} Nf6 {[%emt 0:00:29]} 2. c4 {[%emt 0:00:17]} e6 {[%emt 0:00:31]} 3. Nf3 {[%emt 0:00:23]} d5 {[%emt 0:00:37]} 4. g3 {[%emt 0:01:41]} Be7 {[%emt 0:01:06]} 5. Bg2 {[%emt 0:00:19]} O-O {[%emt 0:00:43]} 6. O-O {[%emt 0:00:08]} c6 {[%emt 0:00:57]} 7. Nc3 {[%emt 0:01:42]} a5 {[%emt 0:02:30] E06: Closed Catalan: Early deviations.} 8. Ne5 {[%emt 0:17:42]} Nfd7 {[%emt 0:02:26]} 9. Nxd7 {[%emt 0:00:32]} Nxd7 {[%emt 0:01:37] The position is equal.} 10. b3 {[%emt 0:01:24]} b6 {[%emt 0:02:32]} 11. cxd5 {[%emt 0:04:59]} cxd5 {[%emt 0:01:52]} 12. Nb5 {[%emt 0:03:39]} Ba6 {[%emt 0:01:33]} 13. a4 {[%emt 0:00:09]} Nf6 {[%emt 0:03:04]} 14. Bf4 {[%emt 0:01:16] [#]} Rc8 $146 {[%emt 0:01:08] Inhibits Nc7.} ({Predecessor:} 14... Bxb5 15. axb5 Qd7 16. Qd3 Rfc8 17. Rfc1 Rxc1+ 18. Rxc1 Rc8 19. Rxc8+ Qxc8 20. Bf3 h6 {0-1 (63) Pubantz,J (2286)-Zaragatski,I (2509) Reinstorf 2022}) 15. Rc1 {[%emt 0:11:10]} Qd7 {[%emt 0:03:23]} 16. Qd3 {[%emt 0:03:36]} Ba3 {[%emt 0:09:21]} 17. Ra1 {[%emt 0:05:26]} Bb4 {[%emt 0:00:58][%cal Oc8c3]} 18. Rfc1 {[%emt 0:00:09] Against Rc3} h6 {[%emt 0:06:55]} 19. f3 {[%emt 0:01:23]} Rfd8 {[%emt 0:00:54]} 20. Rxc8 {[%emt 0:04:00]} Rxc8 {[%emt 0:00:26]} 21. Rc1 {[%emt 0:00:05]} Rxc1+ {[%emt 0:03:00]} 22. Bxc1 {[%emt 0:00:06]} Ne8 {[%emt 0:00:04]} 23. Bf1 {[%emt 0:01:41]} Nd6 {[%emt 0:02:19]} 24. e3 $1 {[%emt 0:00:06]} h5 {[%emt 0:01:26]} 25. Bb2 {[%emt 0:00:22]} h4 {[%emt 0:07:10]} 26. Kf2 {[%emt 0:06:43]} hxg3+ {[%emt 0:02:11]} 27. hxg3 {[%emt 0:00:05]} Bxb5 {[%emt 0:04:46]} 28. axb5 {[%emt 0:00:06]} Qc7 {[%emt 0:00:08]} (28... Qd8 $17) 29. Qd1 $15 {[%emt 0:18:02]} Nf5 {[%emt 0:06:46]} 30. f4 {[%emt 0:00:05]} Nd6 {[%emt 0:01:12]} 31. Bd3 {[%emt 0:00:06]} Qd7 {[%emt 0:01:45]} 32. Qe2 {[%emt 0:00:48]} f5 {[%emt 0:00:26]} 33. g4 {[%emt 0:02:55]} g6 {[%emt 0:05:54]} 34. g5 {[%emt 0:00:49]} Qh7 $36 {[%emt 0:00:21][%mdl 2048] Black has the initiative.} 35. Kg2 {[%emt 0:02:50] Prevents Qh2+.} Qh4 {[%emt 0:00:42]} 36. Bc1 {[%emt 0:02:35]} Be1 {[%emt 0:07:29]} 37. Ba3 {[%emt 0:04:24]} Ne8 {[%emt 0:02:36]} 38. Qf3 {[%emt 0:01:32]} Kf7 {[%emt 0:03:35]} 39. Kf1 $2 {[%emt 0:05:04]} (39. Be2 $11) 39... Bd2 $1 $19 {[%emt 0:01:39]} 40. Qf2 {[%emt 0:00:00] Against Qe1+} Qh1+ {[%emt 0:00:00]} 41. Ke2 {[%emt 0:01:31] [#]} Qa1 {[%emt 0:07:08]} (41... Bc1 $1 $19 {[%cal Rc1a3]} 42. Bxc1 Qxc1) 42. Kxd2 $17 {[%emt 0:13:27]} Qxa3 {[%emt 0:00:11][%mdl 4096] Endgame KQB-KQN} 43. Qh4 $2 {[%emt 0:03:26][%mdl 8192] This move loses the game for White.} (43. Bc2 $17 {was the crucial defense.}) 43... Qxb3 $19 {[%emt 0:00:32]} 44. Qh7+ {[%emt 0:02:57]} Ng7 {[%emt 0:00:05]} 45. Qh8 {[%emt 0:00:16]} Qb2+ {[%emt 0:00:51]} 46. Kd1 {[%emt 0:00:24]} a4 {[%emt 0:00:15] And now ...a3 would win.} 47. Qc8 {[%emt 0:00:45]} a3 {[%emt 0:02:46] aiming for ...a2. Chess con chili.} 48. Qc2 $2 {[%emt 0:00:15] [#]} (48. Qc7+ Kg8 49. Qc8+ Kh7 50. Qc1) 48... Qb4 $1 {[%emt 0:01:50]} ({Not} 48... Qxc2+ 49. Kxc2 e5 50. fxe5 $17) 49. Qa2 {[%emt 0:01:27]} Ne8 {[%emt 0:01:10]} 50. Kc2 {[%emt 0:00:22]} Nd6 {[%emt 0:00:22] White must now prevent ...Nc4.} 51. Qb3 {[%emt 0:00:33]} Qa5 {[%emt 0:00:11] ( -> ...a2)} 52. Kb1 {[%emt 0:02:14]} Ke7 {[%emt 0:04:13]} 53. Ka2 {[%emt 0:04:45]} Qd2+ {[%emt 0:00:07]} 54. Kb1 $2 {[%emt 0:00:05]} (54. Ka1 {is the only way for White.} Qe1+ 55. Ka2 Qxe3 56. Qxa3 Qxd4 57. Kb1) 54... a2+ {[%emt 0:01:00]} 55. Ka1 {[%emt 0:00:06]} Qxe3 {[%emt 0:01:17]} 56. Qc3 {[%emt 0:02:16]} Kd8 {[%emt 0:03:09] Prevents Qc7+. Threatens to win with ...Nxb5. Black is clearly winning.} 57. Kxa2 {[%emt 0:02:07]} Nxb5 {[%emt 0:00:20]} 58. Qb3 {[%emt 0:01:24]} Qd2+ {[%emt 0:00:11]} 59. Bc2 {[%emt 0:00:18]} (59. Ka1 $142 Nc7 60. Kb1) 59... Qa5+ {[%emt 0:00:16]} 60. Kb2 {[%emt 0:00:15]} Nxd4 {[%emt 0:00:06] Weighted Error Value: White=0.40/Black=0.15 (very precise)} 0-1

[Event "Przeworsk GM norm 2022"]
[Site "Przeworsk"]
[Date "2022.06.03"]
[Round "7.5"]
[White "Omelja, Artem"]
[Black "Mis, Mieszko"]
[Result "1/2-1/2"]
[ECO "D37"]
[WhiteElo "2515"]
[BlackElo "2388"]
[Annotator "TA"]
[PlyCount "60"]
[EventDate "2022.05.30"]
[EventType "tourn"]
[EventCountry "POL"]
[SourceTitle "playchess.com"]
[Source "ChessBase"]
[SourceQuality "1"]
[TimeControl "40/5400+30:1800+30"]

{[%evp 15,60,16,11,3,11,10,4,4,6,10,5,5,9,8,8,8,9,0,0,-5,0,0,0,-9,-4,-7,10,9,8,8,10,9,10,10,19,12,13,14,11,0,12,8,8,6,14,1,2]} 1. d4 {[%emt 0:00:22]} Nf6 {[%emt 0:00:06]} 2. c4 {[%emt 0:00:10]} e6 {[%emt 0:00:07]} 3. Nf3 {[%emt 0:00:32]} d5 {[%emt 0:00:09]} 4. Nc3 {[%emt 0:00:51]} dxc4 {[%emt 0:00:10]} 5. e3 {[%emt 0:00:45]} a6 {[%emt 0:00:13]} 6. Bxc4 {[%emt 0:02:58]} b5 {[%emt 0:00:13]} 7. Bb3 {[%emt 0:00:08]} Bb7 {[%emt 0:00:07]} 8. O-O {[%emt 0:00:11]} c5 {[%emt 0:00:11] The position is equal.} 9. e4 {[%emt 0:00:50] D27: Queen's Gambit Accepted: Classical main line: 7 e4!? and 7 a4.} cxd4 {[%emt 0:00:11]} 10. Nxd4 {[%emt 0:00:09]} Nc6 {[%emt 0:00:07]} 11. Nxc6 {[%emt 0:00:40]} Qxd1 {[%emt 0:00:05]} 12. Rxd1 {[%emt 0:00:23] [#] Ne5 is the strong threat.} Bxc6 {[%emt 0:00:04]} 13. f3 {[%emt 0:00:42]} Bc5+ {[%emt 0:00:04]} 14. Kf1 {[%emt 0:00:23]} Ke7 {[%emt 0:00:17]} 15. Ne2 {[%emt 0:07:35] White wants to play Bg5.} Rhc8 {[%emt 0:08:33] [#]} 16. Bf4 $146 {[%emt 0:18:47]} ({Predecessor:} 16. Bg5 h6 17. Rac1 Bb7 18. Bd2 Nd7 19. a4 b4 20. a5 Bd6 21. Nd4 g5 22. Bc4 {½-½ (29) Fremmegaard,J (2151)-Clark,R (2125) ICCF email 2017}) 16... Nd7 {[%emt 0:06:42]} 17. Rac1 {[%emt 0:02:21][%cal Oc1c5]} Bb7 {[%emt 0:05:19]} 18. Bg5+ {[%emt 0:11:20]} Ke8 {[%emt 0:03:57]} 19. Nd4 {[%emt 0:05:14]} h6 {[%emt 0:23:33] [#] And now ...Bxd4 would win.} 20. Be3 {[%emt 0:04:31]} Bb6 {[%emt 0:07:10]} 21. Ke2 {[%emt 0:01:23][%cal Od4e6] Threatening Nxe6!} Rxc1 {[%emt 0:02:16]} 22. Rxc1 {[%emt 0:00:08]} Rc8 {[%emt 0:01:16]} 23. Rxc8+ {[%emt 0:01:30]} Bxc8 {[%emt 0:00:03]} 24. a4 {[%emt 0:00:31]} bxa4 {[%emt 0:02:15]} 25. Bxa4 {[%emt 0:00:10]} Ke7 {[%emt 0:01:58]} 26. b4 {[%emt 0:02:15]} Bb7 {[%emt 0:08:42]} 27. Nc6+ {[%emt 0:04:15]} Kd6 {[%emt 0:04:36]} 28. Na5 {[%emt 0:00:32]} Bxa5 {[%emt 0:00:46]} 29. bxa5 {[%emt 0:00:08]} Bc6 {[%emt 0:00:07]} 30. Bd1 {[%emt 0:00:19]} Bb5+ {[%emt 0:00:25] An even fight not without its subleties.  Weighted Error Value: White=0.03 (flawless) /Black=0.03 (flawless)} 1/2-1/2